bitfinex/quotes_ETHUSD_20241104
["timestamp","ask_amount","ask_price","bid_price","bid_amount"]
[1730684103905,4.05729,2464.7,2464.2,4.05803]
[1730684104133,4.0576,2464.6,2464.0,4.88921]
[1730684104455,4.0576,2464.6,2464.0,0.8309]
[1730684104456,4.05814,2464.2,2464.0,0.8309]
[1730684104620,4.05827,2464.1,2463.5,4.89012]
[1730684104939,4.05845,2464.0,2463.5,4.89014]
[1730684105144,4.05845,2464.0,2463.5,5.79123635]
[1730684105501,4.05827,2464.1,2463.5,5.79123635]
[1730684105706,4.05828,2464.1,2463.5,0.8309]
[1730684105957,4.05928,2463.5,2463.3,0.0615335]
[1730684106122,4.05895,2463.7,2463.3,0.0615335]
[1730684106910,4.05928,2463.5,2463.3,0.0615335]
[1730684107139,4.05943,2463.4,2463.3,0.0615335]
[1730684107458,4.86493,2463.4,2463.3,0.0615335]
[1730684109032,4.05943,2463.4,2463.3,0.0615335]
[1730684109246,4.05922,2463.6,2463.3,0.0615335]
[1730684109423,8.11844,2463.6,2463.3,0.0615335]
[1730684109622,4.05922,2463.6,2463.3,0.0615335]
[1730684110115,8.11842,2463.6,2463.3,0.0615335]
[1730684110430,4.0592,2463.6,2463.3,0.0615335]
[1730684111319,4.05861,2463.9,2463.3,0.54906785]
[1730684111518,8.11773,2463.8,2463.3,0.0615335]
[1730684111830,4.05881,2463.8,2463.3,4.1211135]
[1730684112538,4.05856,2464.0,2463.3,0.0615335]
[1730684112539,8.11713,2464.0,2463.3,0.0615335]
[1730684112861,4.05853,2464.0,2463.3,0.0615335]
[1730684113013,4.05885,2463.8,2463.3,0.54905085]
[1730684113218,4.05885,2463.8,2463.3,4.60862085]
[1730684113534,4.05821,2464.2,2463.6,4.0591]
[1730684113721,4.05835,2464.1,2463.7,0.48131]
[1730684114439,4.05841,2464.1,2463.7,0.48131]
[1730684117156,1.16206,2464.6,2463.7,0.48131]
[1730684117326,1.16206,2464.6,2463.5,0.754]
[1730684117327,4.05868,2463.9,2463.5,0.754]
[1730684118921,4.05851,2464.0,2463.5,0.754]
[1730684119460,4.05838,2464.1,2463.5,0.754]
[1730684119621,4.05844,2464.0,2463.5,0.754]
[1730684119820,4.05902,2463.7,2463.3,0.0615335]
[1730684120021,4.05941,2463.5,2463.3,0.0615335]
[1730684120534,4.05943,2463.4,2463.3,0.0615335]
[1730684120761,4.05941,2463.5,2463.3,0.0615335]
[1730684120957,4.05937,2463.5,2463.3,0.0615335]
[1730684121164,4.05943,2463.4,2463.3,0.0615335]
[1730684121323,6.18761,2463.4,2463.3,0.0615335]
[1730684121671,15.44651134,2463.4,2463.3,0.0615335]
[1730684122156,13.76048714,2463.4,2463.3,0.0615335]
[1730684122566,15.88290894,2463.4,2463.3,0.0615335]
[1730684122870,15.45830078,2463.4,2463.3,0.0615335]
[1730684123070,4.0611,2462.4,2462.1,0.8378335]
[1730684123366,4.0611,2462.4,2462.1,1.33389503]
[1730684123929,4.06091,2462.5,2462.1,1.33389503]
[1730684124532,4.06119,2462.4,2462.1,1.33389503]
[1730684124728,4.06118,2462.4,2462.1,0.8378335]
[1730684125768,4.06096,2462.5,2462.1,0.8378335]
[1730684126234,4.06087,2462.6,2462.1,0.8378335]
[1730684126438,4.06103,2462.5,2462.1,0.8378335]
[1730684126767,4.06085,2462.6,2462.1,0.8378335]
[1730684127074,8.12172,2462.6,2462.1,0.8378335]
[1730684127731,4.06091,2462.5,2462.1,0.8378335]
[1730684127964,0.812176,2462.5,2462.1,0.0615335]
[1730684128272,4.0614,2462.2,2462.1,0.0615335]
[1730684128972,4.06126,2462.3,2462.1,0.0615335]
[1730684129269,4.0614,2462.2,2462.1,0.0615335]
[1730684129830,4.8561,2462.2,2462.1,0.0615335]
[1730684131479,4.0614,2462.2,2462.1,0.0615335]
[1730684132331,4.0614,2462.2,2462.1,0.15751838]
[1730684132534,4.0614,2462.2,2462.1,0.0615335]
[1730684132734,4.63250935,2462.2,2462.1,0.15954389]
[1730684132968,4.63250935,2462.2,2462.1,0.0615335]
[1730684134444,4.63250935,2462.2,2462.1,0.15954985]
[1730684135469,4.87349,2462.3,2462.1,0.15954985]
[1730684135680,4.06117,2462.4,2462.1,0.15954985]
[1730684135876,4.0614,2462.2,2462.1,0.15954985]
[1730684138373,4.06126,2462.3,2462.1,0.15954985]
[1730684138671,8.12208,2462.5,2462.2,0.781]
[1730684138830,8.12208,2462.5,2462.2,0.8789331]
[1730684138831,4.06104,2462.5,2462.2,0.8789331]
[1730684139033,4.06111,2462.4,2462.2,0.8789331]
[1730684139640,4.0611,2462.4,2462.2,0.0979331]
[1730684139851,4.0611,2462.4,2462.1,0.0615335]
[1730684140160,4.06127,2462.3,2462.2,0.09785556]
[1730684140375,4.46738,2462.3,2462.2,0.09785556]
[1730684140934,4.0614,2462.2,2462.1,0.0615335]
[1730684141139,4.0614,2462.2,2462.1,0.15942161]
[1730684144387,4.8857,2462.2,2462.1,0.15942161]
[1730684144690,5.780397,2462.2,2462.1,0.0615335]
[1730684145685,5.780397,2462.2,2462.1,0.15946038]
[1730684147340,4.956097,2462.2,2462.1,0.15946038]
[1730684147549,8.12262,2462.3,2462.1,0.15946038]
[1730684147899,4.06127,2462.3,2462.1,0.15946038]
[1730684148055,4.06101,2462.5,2462.1,0.15946038]
[1730684148455,4.06108,2462.4,2462.1,0.15946038]
[1730684148683,4.06101,2462.5,2462.1,0.15946038]
[1730684149010,4.06135,2462.3,2462.1,0.15946038]
[1730684149384,8.76943038,2462.9,2462.1,4.22094038]
[1730684149385,4.06074,2462.6,2462.1,4.22094038]
[1730684149717,4.06074,2462.6,2462.2,0.781]
[1730684150011,4.06074,2462.6,2462.3,0.09776038]
[1730684150176,4.06091,2462.5,2462.3,0.09776038]
[1730684150488,4.06091,2462.5,2462.4,0.09767713]
[1730684150814,4.06074,2462.6,2462.2,0.781]
[1730684150999,4.06074,2462.6,2462.4,0.09767713]
[1730684151309,4.06074,2462.6,2462.5,0.0975939]
[1730684151496,4.06074,2462.6,2462.2,0.781]
[1730684151706,4.06074,2462.6,2462.3,0.09776038]
[1730684152217,4.06074,2462.6,2462.2,0.781]
[1730684152218,4.06061,2462.7,2462.4,0.09767713]
[1730684152579,4.06061,2462.7,2462.2,4.8424]
[1730684152789,8.12128,2462.7,2462.5,0.0975939]
[1730684152988,8.12128,2462.7,2462.2,4.8424]
[1730684153202,8.12128,2462.7,2462.6,0.09751067]
[1730684153377,4.06075,2462.6,2462.2,4.8424]
[1730684154713,4.06061,2462.7,2462.2,0.781]
[1730684154913,4.06101,2462.5,2462.2,0.781]
[1730684155986,8.12206,2462.5,2462.2,0.781]
[1730684156189,0.8243,2462.6,2462.1,0.0615335]
[1730684156403,4.06115,2462.4,2462.1,0.0615335]
[1730684156982,4.06093,2462.5,2462.1,0.0615335]
[1730684157584,4.06042,2462.8,2462.3,0.781]
[1730684157799,4.0606,2462.7,2462.3,4.84215]
[1730684157998,4.06042,2462.8,2462.4,0.0976503]
[1730684158423,4.06061,2462.7,2462.4,0.0976503]
[1730684158786,3.0,2463.1,2462.4,0.0976503]
[1730684158787,4.06039,2462.9,2462.4,0.59165533]
[1730684159023,4.06046,2462.8,2462.4,0.0976503]
[1730684159515,4.06039,2462.9,2462.4,4.1586503]
[1730684159717,4.06042,2462.8,2462.4,0.0976503]
[1730684160622,4.05984,2463.2,2462.7,4.06055]
[1730684160779,4.06001,2463.1,2462.6,4.06066]
[1730684160976,4.06001,2463.1,2462.8,0.0973174]
[1730684161183,4.05984,2463.2,2462.7,0.09740061]
[1730684161484,4.0601,2463.0,2462.9,0.09723419]
[1730684161685,4.06102,2462.5,2462.2,0.781]
[1730684161916,4.06124,2462.3,2462.2,0.781]
[1730684162395,4.0614,2462.2,2462.1,0.0615335]
[1730684163184,4.06124,2462.3,2462.1,0.0615335]
[1730684163530,4.06132,2462.3,2462.1,0.0615335]
[1730684165129,4.06103,2462.5,2462.1,0.0615335]
[1730684165429,4.06109,2462.4,2462.1,0.0615335]
[1730684165625,4.06126,2462.3,2462.1,0.0615335]
[1730684165833,4.06098,2462.5,2462.1,0.0615335]
[1730684165992,4.06015,2463.0,2462.2,0.781]
[1730684165993,3.0,2463.0,2462.2,0.781]
[1730684166191,4.06013,2463.0,2462.6,0.781]
[1730684166392,4.06001,2463.1,2462.6,4.84168]
[1730684166624,4.05986,2463.2,2462.7,4.06055]
[1730684166792,4.05986,2463.2,2462.6,1.671251]
[1730684166991,4.06007,2463.1,2462.6,0.781]
[1730684167420,4.06007,2463.1,2462.6,4.84161]
[1730684167830,1.70064789,2463.3,2462.7,4.06044]
[1730684168034,1.70064789,2463.3,2462.8,4.1416162]
[1730684168235,1.70064789,2463.3,2462.9,1.19416162]
[1730684168531,4.06022,2463.0,2462.5,0.78]
[1730684168897,4.0602,2463.0,2462.5,0.78]
[1730684169396,4.0604,2462.9,2462.5,0.78]
[1730684169620,4.06049,2462.8,2462.5,0.78]
[1730684170536,4.06022,2463.0,2462.5,0.78]
[1730684170537,4.0602,2463.0,2462.5,0.78]
[1730684170732,4.06026,2462.9,2462.5,0.78]
[1730684170935,4.0602,2463.0,2462.5,0.78]
[1730684171241,4.06042,2462.8,2462.5,0.78]
[1730684171597,4.06042,2462.8,2462.2,0.78]
[1730684171598,4.06058,2462.7,2462.2,0.78]
[1730684171821,4.06099,2462.5,2462.2,0.78]
[1730684172029,4.06068,2462.7,2462.2,0.78]
[1730684172030,4.06077,2462.6,2462.2,0.78]
[1730684172202,0.8094,2462.8,2462.2,5.73785235]
[1730684172404,4.06041,2462.8,2462.3,4.06114]
[1730684172609,4.06041,2462.8,2462.3,0.09756958]
[1730684172915,4.06058,2462.7,2462.2,4.84139]
[1730684173118,4.06042,2462.8,2462.4,0.09748634]
[1730684173317,4.06061,2462.7,2462.3,0.09756958]
[1730684173505,4.06061,2462.7,2462.2,4.84139]
[1730684173725,4.06061,2462.7,2462.4,0.09748634]
[1730684173918,4.06061,2462.7,2462.2,8.90269]
[1730684174131,4.0606,2462.7,2462.5,0.0974031]
[1730684174346,4.0606,2462.7,2462.2,4.8413]
[1730684174656,4.06077,2462.6,2462.2,4.8413]
[1730684174808,4.06059,2462.7,2462.2,4.8413]
[1730684175813,2.16432098,2462.9,2462.2,0.78]
[1730684176009,4.06082,2462.6,2462.2,0.78]
[1730684176229,8.12169,2462.6,2462.2,0.78]
[1730684176429,8.12169,2462.6,2462.1,4.1230835]
[1730684176430,4.0614,2462.2,2462.1,0.0615335]
[1730684179055,4.8708,2462.2,2462.1,0.0615335]
[1730684179224,10.56762972,2462.2,2462.1,0.0615335]
[1730684179432,0.8094,2461.6,2460.8,0.0615335]
[1730684179644,4.06355,2460.9,2460.8,0.0615335]
[1730684180040,4.06341,2461.0,2460.8,0.0615335]
[1730684180225,4.87295,2460.9,2460.8,0.0615335]
[1730684180551,4.06355,2460.9,2460.8,0.0615335]
[1730684181390,4.52722309,2460.9,2460.8,0.0615335]
[1730684182318,5.33662309,2460.9,2460.8,0.0615335]
[1730684185112,4.85915,2461.2,2460.8,0.0615335]
[1730684185311,4.06347,2461.0,2460.8,0.0615335]
[1730684185559,4.85915,2461.2,2460.9,0.07555537]
[1730684185766,4.06338,2461.0,2460.9,0.07555537]
[1730684185913,4.06325,2461.1,2460.9,0.07555537]
[1730684186143,4.06311,2461.2,2460.9,0.07555537]
[1730684186442,4.06333,2461.1,2460.9,0.07555537]
[1730684187185,4.06297,2461.3,2460.9,0.07555537]
[1730684187400,4.06315,2461.2,2460.9,0.07555537]
[1730684187564,4.06297,2461.3,2460.9,0.07555537]
[1730684187885,4.0631,2461.2,2460.9,0.07555537]
[1730684188180,4.06325,2461.1,2460.9,0.07555537]
[1730684188659,8.12598,2461.3,2460.9,0.07555537]
[1730684188862,4.06297,2461.3,2460.9,0.07555537]
[1730684189480,4.06306,2461.2,2460.9,0.07555537]
[1730684190487,4.06297,2461.3,2460.9,0.07555537]
[1730684191053,4.06323,2461.1,2460.9,0.07555537]
[1730684191273,4.06338,2461.0,2460.9,0.07555537]
[1730684191475,4.06298,2461.3,2460.9,0.07555537]
[1730684191687,8.6604825,2461.3,2460.9,0.07555537]
[1730684191986,4.06307,2461.2,2460.9,0.07555537]
[1730684192364,4.5974625,2461.3,2460.9,0.07555537]
[1730684192686,4.06315,2461.2,2460.9,0.07555537]
[1730684193390,4.06323,2461.1,2460.9,0.07555537]
[1730684193806,8.12655,2461.1,2460.9,0.07555537]
[1730684194163,4.06323,2461.1,2460.9,0.07555537]
[1730684194615,4.06271,2461.5,2461.0,0.7987]
[1730684194899,4.06234,2461.7,2461.1,4.06308]
[1730684195105,4.06234,2461.7,2461.1,4.13869444]
[1730684195307,4.06248,2461.6,2461.1,4.13869444]
[1730684195469,4.06202,2461.9,2461.1,5.08877207]
[1730684195672,4.06217,2461.8,2461.2,4.86162]
[1730684195864,0.796,2462.1,2461.2,1.8437324]
[1730684195865,8.12472,2461.7,2461.2,1.8437324]
[1730684196176,8.12472,2461.7,2461.3,0.0754478]
[1730684196177,4.06235,2461.7,2461.3,0.0754478]
[1730684197061,4.06251,2461.6,2461.3,0.0754478]
[1730684197509,4.06235,2461.7,2461.3,0.0754478]
[1730684197811,8.12473,2461.7,2461.3,0.0754478]
[1730684198206,4.06239,2461.6,2461.3,0.0754478]
[1730684198372,4.06257,2461.5,2461.3,0.0754478]
[1730684198568,8.1247,2461.7,2461.3,0.0754478]
[1730684199197,4.06241,2461.6,2461.3,0.0754478]
[1730684199505,4.06272,2461.4,2461.3,0.0754478]
[1730684199713,4.06272,2461.4,2460.9,0.7878]
[1730684199883,4.06306,2461.2,2460.9,0.7878]
[1730684200211,4.06328,2461.1,2460.7,0.7878]
[1730684200878,4.06323,2461.1,2460.7,0.7878]
[1730684201592,4.0634,2461.0,2460.7,0.7878]
[1730684201791,4.06306,2461.2,2460.7,0.7878]
[1730684202002,4.06325,2461.1,2460.7,0.7878]
[1730684202381,4.0635,2461.0,2460.7,0.7878]
[1730684202577,4.0635,2461.0,2460.9,0.07564144]
[1730684203712,5.653269,2461.0,2460.9,0.07564144]
[1730684203879,7.8406,2461.0,2460.2,0.7878]
[1730684204082,4.06355,2460.9,2460.2,0.7878]
[1730684211502,4.06355,2460.9,2460.2,4.85247]
[1730684211703,4.06355,2460.9,2460.2,0.7878]
[1730684212536,4.0635,2461.0,2460.7,0.7878]
[1730684212740,4.06316,2461.2,2460.8,0.13752281]
[1730684212944,4.06283,2461.4,2460.8,0.13752281]
[1730684212945,4.06289,2461.3,2460.8,4.70005109]
[1730684213236,8.12565,2461.4,2460.8,4.70005109]
[1730684213599,4.06289,2461.3,2460.8,0.13752281]
[1730684213902,7.06355,2460.9,2460.8,0.0615335]
[1730684220012,7.61355,2460.9,2460.8,0.0615335]
[1730684220345,8.80187075,2460.9,2460.8,0.0615335]
[1730684222936,8.80187075,2460.9,2460.8,3.5e-06]
[1730684222937,10.91998013,2460.9,2460.8,3.5e-06]
[1730684223107,8.80187075,2460.9,2460.8,3.5e-06]
[1730684223309,11.34360201,2460.9,2460.8,3.5e-06]
[1730684223504,8.80187075,2460.9,2460.8,3.5e-06]
[1730684224139,11.34360201,2460.9,2460.8,3.5e-06]
[1730684224536,11.35366551,2460.9,2460.8,3.5e-06]
[1730684224843,8.80187075,2460.9,2460.8,3.5e-06]
[1730684226737,11.35366551,2460.9,2460.8,3.5e-06]
[1730684226971,8.80187075,2460.9,2460.8,3.5e-06]
[1730684227161,11.35229981,2460.9,2460.8,3.5e-06]
[1730684227333,4.06504,2460.0,2459.9,0.06095176]
[1730684227556,4.84175,2460.3,2459.9,0.84875176]
[1730684227557,4.06466,2460.3,2459.9,0.84875176]
[1730684227757,4.06452,2460.4,2459.9,0.84875176]
[1730684227997,4.06421,2460.5,2460.0,0.06955641]
[1730684227998,4.06498,2460.1,2460.0,0.06955641]
[1730684228997,4.06471,2460.2,2460.0,0.06955641]
[1730684229175,4.06471,2460.2,2459.9,0.84875176]
[1730684229176,8.1295,2460.2,2459.9,0.84875176]
[1730684229371,4.06471,2460.2,2460.1,0.06947301]
[1730684229577,4.69992158,2460.8,2459.9,0.84875176]
[1730684229767,4.06406,2460.6,2460.1,0.7653]
[1730684229960,4.06438,2460.4,2460.1,0.7653]
[1730684230303,4.06409,2460.6,2460.3,0.7653]
[1730684230793,8.12825,2460.6,2460.4,0.06913126]
[1730684230958,4.06409,2460.6,2460.4,0.06913126]
[1730684231163,4.06348,2461.0,2460.6,0.7653]
[1730684231363,4.06316,2461.2,2460.7,0.7653]
[1730684231609,4.06282,2461.4,2460.7,0.06883981]
[1730684231758,4.0633,2461.1,2460.9,0.7653]
[1730684232158,4.06322,2461.1,2461.0,0.06858978]
[1730684232901,4.06321,2461.2,2461.0,0.06858978]
[1730684233088,8.12638,2461.2,2461.0,0.06858978]
[1730684233259,1.69992158,2461.6,2461.0,0.06858978]
[1730684233460,4.06242,2461.6,2461.1,0.7653]
[1730684233703,1.39397963,2462.0,2461.0,0.06858978]
[1730684233704,5.76168158,2462.0,2461.2,0.7653]
[1730684233866,4.06289,2461.3,2461.2,0.83333918]
[1730684234061,4.06289,2461.3,2461.2,0.06803918]
[1730684234626,4.06289,2461.3,2460.9,0.7653]
[1730684234904,4.06289,2461.3,2461.2,0.06576251]
[1730684235117,4.06289,2461.3,2460.9,0.7653]
[1730684235565,4.06308,2461.2,2461.0,0.06590259]
[1730684236575,4.06322,2461.1,2461.0,0.06590259]
[1730684236905,4.06371,2460.8,2460.7,0.7653]
[1730684237091,4.06343,2461.0,2460.7,0.7653]
[1730684237295,8.12693,2461.0,2460.7,0.82918279]
[1730684237715,4.06371,2460.8,2460.7,0.82918279]
[1730684238201,4.06371,2460.8,2460.7,0.06388279]
[1730684238362,4.06404,2460.6,2460.5,0.7653]
[1730684238565,4.0639,2460.7,2460.5,0.7653]
[1730684238798,8.12753,2460.8,2460.5,0.7653]
[1730684239000,4.06398,2460.7,2460.5,0.7653]
[1730684240202,4.06398,2460.7,2460.2,4.06467]
[1730684240203,4.06307,2461.2,2460.7,4.82906]
[1730684240404,4.06371,2460.8,2460.7,0.7653]
[1730684241114,4.06437,2460.4,2460.3,0.7653]
[1730684241274,4.06416,2460.6,2460.3,0.7653]
[1730684241476,4.06429,2460.5,2460.3,0.7653]
[1730684241827,4.06416,2460.6,2460.3,0.7653]
[1730684242031,4.06434,2460.5,2460.3,0.7653]
[1730684242326,4.06415,2460.6,2460.3,0.7653]
[1730684243989,4.82123,2461.0,2460.3,1.248313]
[1730684243990,4.06349,2461.0,2460.3,1.248313]
[1730684244336,4.06349,2461.0,2460.6,0.7648]
[1730684244680,4.06349,2461.0,2460.6,4.82883]
[1730684244880,4.06322,2461.1,2460.6,0.7648]
[1730684245110,4.06316,2461.2,2460.6,4.82884]
[1730684245328,4.06326,2461.1,2460.7,0.482884]
[1730684245988,4.0634,2461.0,2460.7,0.482884]
[1730684246193,8.12688,2461.0,2460.6,0.7648]
[1730684246411,4.0634,2461.0,2460.6,0.7648]
[1730684247330,8.12632,2461.2,2460.6,4.82882]
[1730684247500,4.0633,2461.1,2460.6,4.82882]
[1730684247700,4.06316,2461.2,2460.7,0.54470299]
[1730684248192,8.12631,2461.2,2460.7,4.60855299]
[1730684248393,4.06315,2461.2,2460.7,0.54470299]
[1730684248731,4.0635,2461.0,2460.7,0.54470299]
[1730684248929,4.06332,2461.1,2460.7,0.06182099]
[1730684249642,8.12665,2461.1,2460.7,0.06182099]
[1730684250064,4.06332,2461.1,2460.7,0.06182099]
[1730684250211,5.76259158,2461.5,2460.8,4.82844]
[1730684250404,4.06272,2461.5,2461.0,0.7648]
[1730684250601,4.06282,2461.4,2461.0,0.7648]
[1730684250824,4.06286,2461.4,2461.1,0.06148763]
[1730684251647,4.06272,2461.5,2461.1,0.06148763]
[1730684251946,4.06217,2461.8,2461.3,4.06279]
[1730684252113,4.06238,2461.7,2461.2,0.7648]
[1730684252437,4.06243,2461.6,2461.3,0.06123832]
[1730684252934,4.06267,2461.5,2461.3,0.06123832]
[1730684253443,4.06239,2461.6,2461.3,0.06123832]
[1730684253660,0.65583916,2461.8,2461.3,0.06123832]
[1730684253854,4.06267,2461.5,2461.2,0.7648]
[1730684254032,4.06267,2461.5,2461.4,0.06115501]
[1730684254221,4.06223,2461.7,2461.2,4.82775]
[1730684254421,4.06223,2461.7,2461.4,0.06115501]
[1730684254650,4.06255,2461.6,2461.2,0.7648]
[1730684254852,4.06255,2461.6,2461.5,0.06107171]
[1730684255160,4.06255,2461.6,2461.2,0.7648]
[1730684255330,4.06255,2461.6,2461.5,0.06107171]
[1730684255524,4.06255,2461.6,2461.2,0.7648]
[1730684256158,4.06239,2461.6,2461.3,0.06123832]
[1730684256358,4.06265,2461.5,2461.3,0.06123832]
[1730684256719,4.06272,2461.4,2461.3,0.06123832]
[1730684256923,8.1253,2461.5,2461.3,0.06123832]
[1730684257255,4.06272,2461.4,2461.2,0.7648]
[1730684258256,4.06289,2461.3,2461.2,0.7648]
[1730684258766,4.0633,2461.1,2460.9,0.8115]
[1730684259316,4.06289,2461.3,2460.7,0.8115]
[1730684259569,4.06386,2460.8,2460.4,0.8115]
[1730684259860,4.06349,2461.0,2460.4,0.8115]
[1730684260061,4.06365,2460.9,2460.4,1.299094]
[1730684260550,4.06365,2460.9,2460.4,5.363344]
[1730684261391,4.06376,2460.8,2460.4,0.8115]
[1730684262259,4.06395,2460.7,2460.4,0.8115]
[1730684262726,4.06398,2460.7,2460.5,0.06191391]
[1730684262934,4.06404,2460.6,2460.5,0.06191391]
[1730684263656,4.06398,2460.7,2460.5,0.06191391]
[1730684265053,4.06368,2460.9,2460.5,0.06191391]
[1730684265054,4.06372,2460.8,2460.5,0.06191391]
[1730684265566,4.06371,2460.8,2460.5,0.06191391]
[1730684265736,4.06368,2460.9,2460.5,0.5557083]
[1730684265926,8.12737,2460.9,2460.6,0.8115]
[1730684266345,4.06368,2460.9,2460.7,0.05976132]
[1730684266545,4.470078,2460.8,2460.7,0.05976132]
[1730684266857,4.470078,2460.8,2460.3,0.8115]
[1730684267158,4.0637,2460.9,2460.4,4.06428]
[1730684267692,4.0637,2460.9,2460.5,0.05992804]
[1730684267847,4.06371,2460.8,2460.5,0.05992804]
[1730684268367,4.06371,2460.8,2460.3,0.8115]
[1730684268519,4.0639,2460.7,2460.6,0.05984467]
[1730684268722,4.06414,2460.6,2460.3,0.8115]
[1730684268976,4.06451,2460.4,2460.1,0.8115]
[1730684270415,4.06471,2460.2,2459.9,0.06095176]
[1730684270886,8.12952,2460.2,2459.9,0.06095176]
[1730684271039,4.06503,2460.1,2459.9,0.06095176]
[1730684271381,0.8022,2460.4,2459.9,0.06095176]
[1730684271544,4.06472,2460.2,2459.9,0.06095176]
[1730684271939,4.06504,2460.0,2459.9,0.06095176]
[1730684272395,4.06471,2460.2,2459.9,0.06095176]
[1730684272590,4.06487,2460.1,2459.9,0.06095176]
[1730684272800,4.06449,2460.4,2459.9,0.06095176]
[1730684272997,4.06449,2460.4,2460.0,4.87651]
[1730684273292,4.06415,2460.6,2460.1,0.49374618]
[1730684273462,4.06431,2460.5,2460.0,4.87643]
[1730684274081,4.06405,2460.6,2460.0,4.87643]
[1730684274389,4.06405,2460.6,2460.1,4.06478]
[1730684274595,4.06433,2460.5,2460.0,4.87654]
[1730684274751,4.06433,2460.5,2460.1,0.49374918]
[1730684276100,4.06405,2460.6,2460.1,0.49374918]
[1730684276308,4.06439,2460.4,2460.0,4.87654]
[1730684277759,4.06439,2460.4,2460.1,0.0604565]
[1730684277992,1.69992158,2461.0,2460.3,0.8115]
[1730684278172,4.06338,2461.0,2460.3,0.8115]
[1730684278360,4.06398,2460.7,2460.4,0.06020634]
[1730684278895,8.12757,2460.8,2460.4,0.06020634]
[1730684279401,4.06371,2460.8,2460.4,0.06020634]
[1730684281688,8.12758,2460.8,2460.4,0.06020634]
[1730684281892,4.06421,2460.5,2460.4,0.06020634]
[1730684282099,4.06486,2460.2,2459.9,0.8115]
[1730684282299,4.06487,2460.1,2460.0,0.06055761]
[1730684282833,4.877843,2460.1,2460.0,0.06055761]
[1730684283103,5.680043,2460.1,2459.5,2.06294]
[1730684283287,1.615173,2460.1,2459.7,0.06080785]
[1730684283467,4.06537,2459.8,2459.7,0.06080785]
[1730684284709,4.06515,2460.0,2459.7,0.06080785]
[1730684284914,4.06489,2460.1,2459.8,0.8115]
[1730684285076,4.06504,2460.0,2459.7,0.06080785]
[1730684285275,4.06494,2460.1,2459.7,0.06080785]
[1730684285477,4.06504,2460.0,2459.7,0.06080785]
[1730684286008,4.06512,2460.0,2459.7,0.76933432]
[1730684286930,4.06488,2460.1,2459.7,0.76933432]
[1730684287137,8.12987,2460.1,2459.7,0.06080785]
[1730684287307,4.06505,2460.0,2459.7,0.06080785]
[1730684287822,4.06488,2460.1,2459.7,0.06080785]
[1730684288227,8.12984,2460.1,2459.7,0.06080785]
[1730684288412,4.06506,2460.0,2459.7,0.06080785]
[1730684289905,4.06488,2460.1,2459.7,0.06080785]
[1730684290231,4.06471,2460.2,2459.9,0.823]
[1730684290592,4.06487,2460.1,2460.0,0.06049261]
[1730684291957,4.06472,2460.2,2460.0,0.06049261]
[1730684294645,4.06463,2460.3,2460.0,0.06049261]
[1730684294646,8.12927,2460.3,2460.0,0.06049261]
[1730684294803,4.06472,2460.2,2460.0,0.06049261]
[1730684295199,4.06472,2460.2,2460.1,0.823]
[1730684295397,4.06472,2460.2,2460.0,0.06049261]
[1730684295704,4.06472,2460.2,2460.1,0.06064258]
[1730684295905,4.06472,2460.2,2459.9,0.823]
[1730684296233,0.7878,2460.4,2460.0,0.06074666]
[1730684296537,4.06487,2460.1,2460.0,0.06074666]
[1730684297141,4.06471,2460.2,2460.0,0.06074666]
[1730684297306,8.12953,2460.2,2460.0,0.06074666]
[1730684298141,4.06471,2460.2,2460.0,0.06074666]
[1730684298344,8.1295,2460.2,2460.0,0.06074666]
[1730684298554,4.06471,2460.2,2460.0,0.06074666]
[1730684299060,4.85267,2460.1,2460.0,0.06074666]
[1730684299461,7.85267,2460.1,2460.0,0.06074666]
[1730684299811,4.06553,2459.7,2459.6,0.0615335]
[1730684300414,4.06553,2459.7,2459.3,0.823]
[1730684300415,4.0652,2459.9,2459.3,0.7845335]
[1730684300621,4.06588,2459.5,2459.3,0.7845335]
[1730684301237,4.06588,2459.5,2459.3,0.6845335]
[1730684301818,4.06561,2459.7,2459.3,0.6845335]
[1730684302062,4.0657,2459.6,2459.3,0.6845335]
[1730684302643,8.13126,2459.7,2459.3,0.6845335]
[1730684302856,8.1313,2459.7,2459.3,0.6845335]
[1730684303159,4.06572,2459.6,2459.3,0.6845335]
[1730684303521,4.06561,2459.7,2459.3,0.6845335]
[1730684304119,4.472171,2459.7,2459.3,0.6845335]
[1730684304661,4.06573,2459.6,2459.3,0.6845335]
[1730684304843,4.472171,2459.7,2459.3,0.6845335]
[1730684305381,4.06523,2459.9,2459.4,3.86488038]
[1730684306618,0.891702,2460.2,2459.6,0.7684]
[1730684306815,4.06454,2460.3,2459.6,0.7684]
[1730684307046,4.06528,2459.9,2459.6,0.7684]
[1730684307354,4.06489,2460.1,2459.6,0.7684]
[1730684307561,4.06481,2460.2,2459.7,0.05708724]
[1730684307720,4.06436,2460.5,2459.8,4.63328038]
[1730684307919,4.06436,2460.5,2459.9,4.12198041]
[1730684308124,4.06436,2460.5,2460.1,0.7684]
[1730684308463,4.06436,2460.5,2460.2,0.05663771]
[1730684308464,8.1287,2460.5,2460.2,0.05663771]
[1730684308764,4.06434,2460.5,2460.2,0.05663771]
[1730684309061,4.06432,2460.5,2460.2,0.05663771]
[1730684309221,4.06442,2460.4,2460.2,0.05663771]
[1730684309556,4.064,2460.7,2460.2,0.05663771]
[1730684309863,5.12169549,2460.8,2460.2,4.12125771]
[1730684310153,4.81546,2460.9,2460.2,0.05663771]
[1730684310154,4.06389,2460.7,2460.2,0.05663771]
[1730684310555,4.06407,2460.6,2460.2,0.05663771]
[1730684310851,4.06389,2460.7,2460.2,0.05663771]
[1730684311056,8.12787,2460.7,2460.2,0.05663771]
[1730684311367,4.06439,2460.4,2460.2,0.05663771]
[1730684311655,4.06454,2460.3,2460.2,0.05663771]
[1730684312034,4.06454,2460.3,2459.8,0.7684]
[1730684312237,4.06454,2460.3,2460.2,0.05643975]
[1730684312427,4.06454,2460.3,2459.8,0.7684]
[1730684312619,4.06454,2460.3,2460.2,0.0564368]
[1730684312830,4.06454,2460.3,2459.8,1.14524]